bitfinex-derivatives/quotes_BTCF0:USTF0_20250728
["timestamp","ask_amount","ask_price","bid_price","bid_amount"]
[1753723045899,1.17744614,117850.0,117840.0,0.71064]
[1753723046297,0.6668514,117850.0,117840.0,1.01676]
[1753723046898,0.6668514,117850.0,117840.0,0.31112]
[1753723047104,0.6668514,117850.0,117840.0,1.01684]
[1753723047606,0.6668514,117850.0,117840.0,0.82057]
[1753723048507,0.6668514,117850.0,117840.0,0.98633]
[1753723049009,0.6668514,117850.0,117840.0,0.71072]
[1753723049202,1.17744614,117850.0,117840.0,0.71036]
[1753723049404,0.6668514,117850.0,117840.0,0.71036]
[1753723050108,0.6668514,117850.0,117840.0,0.98597]
[1753723050612,1.17744614,117850.0,117840.0,0.84966]
[1753723051000,1.17744614,117850.0,117840.0,0.71036]
[1753723051607,1.59715814,117850.0,117840.0,1e-07]
[1753723052406,1.4073724,117850.0,117840.0,1e-07]
[1753723053408,0.3083893,117840.0,117830.0,0.06810434]
[1753723053607,0.5250737,117830.0,117820.0,0.706]
[1753723053806,0.53919949,117830.0,117820.0,0.706]
[1753723054007,0.6472372,117830.0,117820.0,0.706]
[1753723054207,0.6472372,117830.0,117820.0,0.87176]
[1753723054396,0.4224272,117830.0,117820.0,1.73546274]
[1753723054597,0.2918972,117830.0,117820.0,1.73546274]
[1753723054802,0.2918972,117830.0,117820.0,1.56571474]
[1753723055110,0.63311141,117830.0,117820.0,1.01124]
[1753723055312,0.64823648,117830.0,117820.0,1.01424]
[1753723055611,0.64823648,117830.0,117820.0,1.05724]
[1753723056309,0.64923648,117830.0,117820.0,1.05524]
[1753723056913,0.64923648,117830.0,117820.0,1.05624]
[1753723057910,0.64923648,117830.0,117820.0,1.07860456]
[1753723058300,0.64926262,117830.0,117820.0,1.07860545]
[1753723060713,0.64926262,117830.0,117820.0,1.03560545]
[1753723061311,0.64926262,117830.0,117820.0,1.07860545]
[1753723062607,1.15985736,117830.0,117820.0,0.77669545]
[1753723062907,0.64926262,117830.0,117820.0,0.77669545]
[1753723063114,0.64926262,117830.0,117820.0,0.94245545]
[1753723063911,0.64926262,117830.0,117820.0,1.03496545]
[1753723064913,0.64926262,117830.0,117820.0,1.51385442]
[1753723065113,0.34391262,117830.0,117820.0,1.51385442]
[1753723065718,0.34391262,117830.0,117820.0,1.53674471]
[1753723066511,0.29392262,117830.0,117820.0,1.53674471]
[1753723066714,0.29392262,117830.0,117820.0,1.68360232]
[1753723066915,0.01615121,117830.0,117820.0,1.70649261]
[1753723067107,0.2545955,117840.0,117820.0,1.72603822]
[1753723067412,0.39560473,117840.0,117830.0,0.76885897]
[1753723067614,0.39560473,117840.0,117830.0,0.79122442]
[1753723068010,0.35317183,117840.0,117830.0,0.79122442]
[1753723068314,0.31073963,117840.0,117830.0,0.79122442]
[1753723068614,0.31173963,117840.0,117830.0,0.79122442]
[1753723068812,0.36172963,117840.0,117830.0,0.86593835]
[1753723069315,0.36172963,117840.0,117830.0,1.56953835]
[1753723069316,0.50039963,117840.0,117830.0,1.56953835]
[1753723069911,0.39286963,117840.0,117830.0,1.56953835]
[1753723070114,0.39186963,117840.0,117830.0,1.57153835]
[1753723070314,0.39286963,117840.0,117830.0,1.57153835]
[1753723070810,0.39286963,117840.0,117830.0,1.59442864]
[1753723071917,0.48885963,117840.0,117830.0,1.59438864]
[1753723072118,0.48885963,117840.0,117830.0,1.66196296]
[1753723072317,0.31273963,117840.0,117830.0,1.66196296]
[1753723072519,0.36003963,117840.0,117830.0,1.66196296]
[1753723072813,0.36003963,117840.0,117810.0,0.07805785]
[1753723072814,0.4686997,117820.0,117810.0,0.07805785]
[1753723073015,0.2170785,117800.0,117790.0,0.28509366]
[1753723073213,0.2170785,117800.0,117790.0,0.98941366]
[1753723073519,0.2170785,117800.0,117790.0,1.07607366]
[1753723073816,0.2170785,117800.0,117790.0,0.41505747]
[1753723074320,0.2180785,117800.0,117790.0,1.12113747]
[1753723074521,0.2180785,117800.0,117790.0,1.07556381]
[1753723075918,0.2180776,117800.0,117790.0,1.07556381]
[1753723076120,0.001,117800.0,117790.0,1.07556381]
[1753723076424,0.1707776,117800.0,117790.0,1.07556381]
[1753723077916,0.1707776,117800.0,117790.0,1.58616671]
[1753723079222,0.18619354,117800.0,117790.0,1.58616671]
[1753723079628,0.23349354,117800.0,117790.0,1.58616671]
[1753723079926,0.2121828,117830.0,117820.0,0.34471]
[1753723080120,0.3759456,117830.0,117820.0,2.22155]
[1753723080321,0.63083218,117830.0,117820.0,2.22155]
[1753723081326,0.63783218,117830.0,117820.0,2.22255]
[1753723081529,1.09112508,117830.0,117820.0,1.17472]
[1753723081825,1.23424508,117830.0,117820.0,1.17572]
[1753723082133,1.23424508,117830.0,117820.0,1.8784]
[1753723083024,1.23424508,117830.0,117820.0,1.879]
[1753723083919,1.23424508,117830.0,117820.0,1.96566]
[1753723084119,1.23424508,117830.0,117820.0,2.08364]
[1753723084424,0.78095218,117830.0,117820.0,2.08364]
[1753723084625,1.29155508,117830.0,117820.0,2.03826]
[1753723085127,1.29155508,117830.0,117820.0,2.05917225]
[1753723087729,1.29155508,117830.0,117820.0,2.03842]
[1753723088227,1.12880508,117830.0,117820.0,2.0838]
[1753723088435,0.51845508,117830.0,117820.0,2.0838]
[1753723088821,1.24911798,117830.0,117820.0,2.0838]
[1753723089026,1.24911798,117830.0,117820.0,2.03806]
[1753723089540,1.24911798,117830.0,117820.0,2.08344]
[1753723090032,1.24911798,117830.0,117820.0,1.33498]
[1753723090228,1.24911798,117830.0,117820.0,1.96562]
[1753723090634,1.24911798,117830.0,117820.0,1.26238]
[1753723090934,1.24911798,117830.0,117820.0,1.96646]
[1753723091126,1.24911798,117830.0,117820.0,2.03906]
[1753723091729,1.24911798,117830.0,117820.0,0.34671]
[1753723092029,1.26470634,117830.0,117820.0,1.05079]
[1753723092428,1.26470634,117830.0,117820.0,1.05035]
[1753723092629,0.75410344,117830.0,117820.0,0.34671]
[1753723092831,0.36541774,117830.0,117820.0,2.7346329]
[1753723093134,0.23777116,117830.0,117820.0,2.7346329]
[1753723093431,0.23777116,117830.0,117820.0,2.22403]
[1753723094132,0.19532316,117830.0,117820.0,2.7346329]
[1753723094520,0.18832316,117830.0,117820.0,2.22303]
[1753723094729,0.18732316,117830.0,117820.0,2.22303]
[1753723095532,0.18632316,117830.0,117820.0,2.7346329]
[1753723095830,0.18632316,117830.0,117820.0,2.22403]
[1753723096032,0.18532316,117830.0,117820.0,2.22303]
[1753723096232,0.18632316,117830.0,117820.0,2.22403]
[1753723097636,0.23362316,117830.0,117820.0,2.22403]
[1753723097834,0.23362316,117830.0,117820.0,2.24489805]
[1753723098334,0.47526316,117830.0,117820.0,2.24413805]
[1753723098524,0.98586606,117830.0,117820.0,2.24413805]
[1753723098728,1.04317606,117830.0,117820.0,2.24413805]
[1753723098929,0.53257316,117830.0,117820.0,2.24413805]
[1753723100240,0.40533316,117830.0,117820.0,2.24413805]
[1753723100436,0.31251316,117830.0,117820.0,2.24413805]
[1753723100939,0.31251316,117830.0,117820.0,2.24381805]
[1753723101132,1.16975888,117830.0,117820.0,0.02286805]
[1753723101332,0.20613,117800.0,117790.0,1.56169381]
[1753723101537,1.04221966,117800.0,117790.0,2.28601731]
[1753723101732,1.04221966,117800.0,117790.0,1.58257731]
[1753723101933,1.04221966,117800.0,117790.0,0.29490731]
[1753723102228,0.5171972,117780.0,117770.0,0.06683979]
[1753723102434,1.04338846,117780.0,117770.0,0.79397]
[1753723102638,0.211376,117760.0,117750.0,0.28438]
[1753723102835,1.03441726,117760.0,117750.0,0.2358]
[1753723103034,1.16236449,117760.0,117750.0,0.70795]
[1753723103433,1.16236449,117760.0,117750.0,0.11642524]
[1753723103628,1.16236449,117760.0,117750.0,0.86358979]
[1753723104136,0.65176159,117760.0,117750.0,1.21626979]
[1753723105027,0.58661159,117760.0,117750.0,1.38611999]
[1753723105232,0.44746159,117760.0,117750.0,1.07530979]
[1753723105540,0.51661159,117760.0,117750.0,1.24515999]
[1753723105933,0.32337139,117760.0,117750.0,1.75676289]
[1753723106234,0.32337139,117760.0,117750.0,1.07630979]
[1753723106437,0.32037139,117760.0,117750.0,1.24615999]
[1753723106633,0.02258836,117760.0,117750.0,1.75676289]
[1753723107234,0.007,117760.0,117750.0,1.75676289]
[1753723107439,0.003,117760.0,117750.0,1.75676289]
[1753723107641,0.005,117760.0,117750.0,1.75676289]
[1753723108937,0.006,117760.0,117750.0,1.75676289]
[1753723110242,0.006,117760.0,117750.0,2.01966289]
[1753723110645,0.006,117760.0,117750.0,1.75676289]
[1753723110938,0.27387876,117780.0,117770.0,0.14096]
[1753723111145,0.28950966,117780.0,117770.0,1.0568]
[1753723111443,0.41711677,117780.0,117770.0,1.0568]
[1753723111744,0.37466237,117780.0,117770.0,1.2266213]
[1753723111940,0.18895836,117780.0,117770.0,1.7372242]
[1753723112143,0.20822894,117780.0,117770.0,1.2266213]
[1753723112340,0.19195836,117780.0,117770.0,1.0568]
[1753723112738,0.24249836,117780.0,117770.0,1.0578]
[1753723113742,0.02715146,117780.0,117770.0,1.7382245]
[1753723114240,0.008,117780.0,117770.0,1.7382245]
[1753723114443,0.27382768,117800.0,117780.0,0.2122526]
[1753723114644,0.24764777,117800.0,117790.0,1.05632]
[1753723114849,0.3328425,117800.0,117790.0,1.05632]
[1753723115040,0.3783825,117800.0,117790.0,1.05632]
[1753723115437,0.3783825,117800.0,117790.0,0.35268]
[1753723115643,0.4719325,117800.0,117790.0,1.05628]
[1753723116140,0.4739325,117800.0,117790.0,1.05628]
[1753723116338,0.4809325,117800.0,117790.0,1.05828]
[1753723116851,0.4739325,117800.0,117790.0,1.05628]
[1753723117062,0.4759325,117800.0,117790.0,1.05728]
[1753723117257,0.4739325,117800.0,117790.0,1.05828]
[1753723120149,0.5430825,117800.0,117790.0,1.05828]
[1753723121955,0.4739325,117800.0,117790.0,1.05828]
[1753723122456,0.25273307,117800.0,117790.0,1.05828]
[1753723123152,0.34628307,117800.0,117790.0,1.05828]
[1753723123453,1.70381678,117800.0,117790.0,0.002]
[1753723123658,1.87360078,117800.0,117790.0,0.71656]
[1753723123854,1.36299788,117800.0,117790.0,0.71656]
[1753723124857,1.36299788,117800.0,117790.0,0.002]
[1753723125258,1.36299788,117800.0,117790.0,0.71644]
[1753723125755,0.3545116,117770.0,117760.0,1.3858]
[1753723125952,0.1698216,117770.0,117760.0,2.269956]
[1753723126556,0.1698216,117770.0,117760.0,2.7805589]
[1753723127058,0.2461116,117770.0,117760.0,1.33722]
[1753723127254,0.4543516,117770.0,117760.0,2.09988]
[1753723127452,0.4543516,117770.0,117760.0,2.10188]
[1753723128755,0.4553516,117770.0,117760.0,2.10588]
[1753723128956,0.5182116,117770.0,117760.0,2.10428]
[1753723129262,0.53452221,117770.0,117760.0,2.10428]
[1753723129461,0.53452221,117770.0,117760.0,2.10328]
[1753723131351,0.53452221,117770.0,117760.0,2.24376]
[1753723131556,0.53452221,117770.0,117760.0,2.24368]
[1753723131963,0.53452221,117770.0,117760.0,1.53076]
[1753723132264,1.17214476,117770.0,117760.0,0.004]
[1753723132866,1.17214476,117770.0,117760.0,0.71716]
[1753723135270,1.17214476,117770.0,117760.0,1.01797]
[1753723135571,1.17214476,117770.0,117760.0,1.0669]
[1753723135772,1.17214476,117770.0,117760.0,1.01797]
[1753723136970,0.5258558,117760.0,117750.0,0.04909]
[1753723137167,1.05276931,117760.0,117750.0,0.04909]
[1753723137362,1.18092577,117760.0,117750.0,1.01038]
[1753723137969,1.18092577,117760.0,117750.0,1.00901]
[1753723138170,1.18092577,117760.0,117750.0,0.29637]
[1753723138370,1.18092577,117760.0,117750.0,1.00977]
[1753723138773,1.13542577,117760.0,117750.0,1.01177]
[1753723138974,1.18192577,117760.0,117750.0,0.90328]
[1753723139273,1.18692577,117760.0,117750.0,1.14285106]
[1753723141277,1.14042577,117760.0,117750.0,1.14285106]
[1753723141775,1.18692577,117760.0,117750.0,1.14285106]
[1753723141977,0.62982287,117760.0,117750.0,1.14285106]
[1753723142176,0.32030287,117760.0,117750.0,1.14285106]
[1753723142673,0.32030287,117760.0,117750.0,0.43069106]
[1753723142867,1.18692577,117760.0,117750.0,0.43069106]
[1753723143073,1.18692577,117760.0,117750.0,1.14177106]
[1753723143270,1.18692577,117760.0,117750.0,0.43069106]
[1753723143475,1.18692577,117760.0,117750.0,1.14241106]
[1753723144685,1.18692577,117760.0,117750.0,1.14205106]
[1753723145993,0.67632287,117760.0,117750.0,1.14205106]
[1753723146686,1.18692577,117760.0,117750.0,1.14205106]
[1753723147892,1.18692577,117760.0,117750.0,0.83277106]
[1753723148191,1.18692577,117760.0,117750.0,0.83269106]
[1753723148494,1.18692577,117760.0,117750.0,0.88162106]
[1753723148687,1.18692577,117760.0,117750.0,0.97242106]
[1753723148891,1.18692577,117760.0,117750.0,1.09243106]
[1753723149688,0.53165287,117760.0,117750.0,1.09243106]
[1753723149896,0.36755287,117760.0,117750.0,1.09243106]
[1753723150188,0.53976287,117760.0,117750.0,1.09243106]
[1753723150593,0.62982287,117760.0,117750.0,1.09243106]
[1753723150794,1.06625878,117760.0,117750.0,1.09243106]
[1753723150995,1.11275878,117760.0,117750.0,1.09243106]
[1753723152384,1.11275878,117760.0,117750.0,1.14053106]
[1753723152590,1.11275878,117760.0,117750.0,0.43069106]
[1753723152791,1.11275878,117760.0,117750.0,0.94061106]
[1753723153182,1.11275878,117760.0,117750.0,0.23097106]
[1753723153389,1.11275878,117760.0,117750.0,0.94033106]
[1753723153786,1.11275878,117760.0,117750.0,1.03180106]
[1753723154285,1.11275878,117760.0,117750.0,1.09131106]
[1753723154894,1.18784771,117760.0,117750.0,1.09131106]
[1753723155298,1.18784771,117760.0,117750.0,1.11167722]
[1753723155499,1.18784771,117760.0,117750.0,1.08849106]
[1753723156593,1.18784771,117760.0,117750.0,0.81715384]
[1753723156793,1.18784771,117760.0,117750.0,0.0469]
[1753723156999,1.18784771,117760.0,117750.0,0.7553]
[1753723158092,1.18784771,117760.0,117750.0,0.79796167]
[1753723159302,0.67632287,117760.0,117750.0,0.88899167]
[1753723159603,1.18784771,117760.0,117750.0,1.08823167]
[1753723160201,1.18784771,117760.0,117750.0,0.08956167]
[1753723160501,1.18784771,117760.0,117750.0,0.79736167]
[1753723162097,1.18784771,117760.0,117750.0,0.84654167]
[1753723162299,1.18784771,117760.0,117750.0,1.14460167]
[1753723163298,1.18784771,117760.0,117750.0,1.03855167]
[1753723163496,1.18784771,117760.0,117750.0,0.0469]
[1753723163696,1.18784771,117760.0,117750.0,0.7545]
[1753723163898,1.18784771,117760.0,117750.0,0.0469]
[1753723164100,1.18784771,117760.0,117750.0,0.75414]
[1753723164299,1.18784771,117760.0,117750.0,0.6942039]
[1753723164500,0.36101,117750.0,117740.0,1.39142031]
[1753723164695,1.05439545,117750.0,117740.0,2.11942383]
[1753723164908,1.18243574,117750.0,117740.0,2.11942383]
[1753723165109,1.18243574,117750.0,117740.0,2.22228533]
[1753723165409,0.3142009,117750.0,117740.0,2.22228533]
[1753723165610,0.3152009,117750.0,117740.0,2.22228533]
[1753723166009,0.3172009,117750.0,117740.0,2.22328533]
[1753723168210,0.3172009,117750.0,117740.0,1.51568533]
[1753723168409,1.04259574,117750.0,117740.0,2.22228533]
[1753723168610,1.09223574,117750.0,117740.0,2.16277533]
[1753723168907,0.82872574,117750.0,117740.0,2.16277533]
[1753723169212,0.3172009,117750.0,117740.0,2.22228533]
[1753723169412,0.82872574,117750.0,117740.0,2.22228533]
[1753723170010,0.5310709,117750.0,117740.0,1.51568533]
[1753723170211,0.5310709,117750.0,117740.0,2.22220533]
[1753723170805,0.3172009,117750.0,117740.0,2.22220533]
[1753723173106,0.33647344,117750.0,117740.0,2.22220533]
[1753723175706,0.77296128,117750.0,117740.0,2.22220533]
[1753723180516,0.77296128,117750.0,117740.0,1.51568533]
[1753723180712,0.77296128,117750.0,117740.0,2.22024533]
[1753723181515,0.33647344,117750.0,117740.0,2.22024533]
[1753723184012,0.77296128,117750.0,117740.0,2.22024533]
[1753723188015,0.3172009,117750.0,117740.0,2.22024533]
[1753723188211,0.75368874,117750.0,117740.0,2.22024533]
[1753723189019,0.3172009,117750.0,117740.0,2.22024533]
[1753723189212,0.1473509,117750.0,117740.0,2.82659737]
[1753723189412,0.18916041,117750.0,117740.0,2.82659737]
[1753723189621,0.2972315,117760.0,117740.0,3.08138327]
[1753723189818,0.31333957,117760.0,117750.0,0.78524784]
[1753723190014,0.4402756,117760.0,117750.0,1.07148352]
[1753723190422,0.87676344,117760.0,117750.0,1.07148352]
[1753723190622,0.4402756,117760.0,117750.0,1.07148352]
[1753723191223,0.4442756,117760.0,117750.0,1.07248352]
[1753723191624,0.4442756,117760.0,117750.0,1.07200352]
[1753723191927,0.4452756,117760.0,117750.0,1.50849136]
[1753723192222,0.4452756,117760.0,117750.0,0.37016352]
[1753723192423,0.4442756,117760.0,117750.0,1.07200352]
[1753723192621,0.4462756,117760.0,117750.0,1.50949136]
[1753723193526,0.4038135,117760.0,117750.0,1.67934116]
[1753723194329,0.4038135,117760.0,117750.0,1.50949136]
[1753723194823,0.4038135,117760.0,117750.0,1.67934116]
[1753723195028,0.3613522,117760.0,117750.0,1.67934116]
[1753723195331,0.3613522,117760.0,117750.0,0.97750116]
[1753723195524,0.3613522,117760.0,117750.0,1.67894116]
[1753723195725,0.93716004,117760.0,117750.0,1.01273352]
[1753723195921,1.14544004,117760.0,117750.0,1.07224352]
[1753723196116,0.3613522,117760.0,117750.0,1.07224352]
[1753723196319,0.3613522,117760.0,117750.0,1.50873136]
[1753723198227,0.0849159,117770.0,117750.0,1.76350396]
[1753723198430,0.2547503,117770.0,117760.0,0.49599784]
[1753723198728,0.42523423,117770.0,117760.0,0.65560136]
[1753723199130,0.42523423,117770.0,117760.0,0.79845136]
[1753723199723,0.47135423,117770.0,117760.0,0.79845136]
[1753723199924,0.71275423,117770.0,117760.0,0.36296352]
[1753723200328,0.77483423,117770.0,117760.0,0.36296352]
[1753723200522,1.21132207,117770.0,117760.0,0.81280352]
[1753723200830,1.21132207,117770.0,117760.0,0.72172352]
[1753723201224,1.21332207,117770.0,117760.0,0.02140352]
[1753723201421,1.21332207,117770.0,117760.0,0.72188352]
[1753723202025,1.21132207,117770.0,117760.0,0.72188352]
[1753723202221,1.21332207,117770.0,117760.0,0.72288352]
[1753723202428,1.21332207,117770.0,117760.0,0.81682352]
[1753723202727,1.21332207,117770.0,117760.0,0.86573352]
[1753723203127,1.21332207,117770.0,117760.0,0.72284352]
[1753723203527,1.21332207,117770.0,117760.0,1.06440352]
[1753723204427,1.21332207,117770.0,117760.0,0.72284352]
[1753723204627,1.21332207,117770.0,117760.0,0.95673352]
[1753723207539,1.21332207,117770.0,117760.0,0.93633]
[1753723208436,1.21332207,117770.0,117760.0,0.70596]
[1753723208633,0.3995699,117750.0,117740.0,1.28731181]
[1753723208833,0.95393774,117750.0,117740.0,2.01303789]
[1753723209138,1.08207957,117750.0,117740.0,2.01303789]
[1753723209540,1.08207957,117750.0,117740.0,2.01295789]
[1753723210136,1.08307957,117750.0,117740.0,2.01483789]
[1753723210434,1.09894051,117750.0,117740.0,2.01483789]
[1753723210935,1.09994051,117750.0,117740.0,1.99423181]
[1753723211439,1.09994051,117750.0,117740.0,1.95088031]
[1753723212029,1.09994051,117750.0,117740.0,0.70492001]
[1753723212435,1.09994051,117750.0,117740.0,0.66224731]
[1753723212940,1.09994051,117750.0,117740.0,0.63800211]
[1753723213139,0.3091843,117740.0,117730.0,0.04291288]
[1753723213435,1.09718353,117740.0,117730.0,0.70472005]
[1753723213628,1.09718353,117740.0,117730.0,0.11214935]
[1753723213834,1.26705553,117740.0,117730.0,0.7046]
[1753723214140,0.3091987,117730.0,117720.0,0.00622959]
[1753723214339,0.96982748,117730.0,117720.0,0.71062959]
[1753723214641,1.09760006,117730.0,117720.0,0.71062959]
[1753723214836,1.09760006,117730.0,117720.0,0.85347959]
[1753723215038,1.09760006,117730.0,117720.0,0.29962959]
[1753723215235,1.09760006,117730.0,117720.0,1.00402959]
[1753723215842,0.66111222,117730.0,117720.0,1.00402959]
[1753723216040,1.09760006,117730.0,117720.0,1.00402959]
[1753723216229,0.66111222,117730.0,117720.0,1.00602959]
[1753723216437,1.09760006,117730.0,117720.0,1.00602959]
[1753723216637,0.66111222,117730.0,117720.0,1.00602959]
[1753723216840,0.66211222,117730.0,117720.0,1.44551743]
[1753723217137,0.66211222,117730.0,117720.0,1.05970959]
[1753723218033,1.09960006,117730.0,117720.0,1.10071776]
[1753723218434,1.10060006,117730.0,117720.0,1.09871776]
[1753723218632,0.36263222,117730.0,117720.0,1.09871776]
[1753723218833,0.31651222,117730.0,117720.0,0.89658191]
[1753723219032,0.18873964,117730.0,117720.0,1.60418191]
[1753723221039,0.62522748,117730.0,117720.0,0.46009407]
[1753723221246,0.47425964,117730.0,117720.0,0.46009407]
[1753723221449,0.97282748,117730.0,117720.0,1.16937407]
[1753723222345,0.53633964,117730.0,117720.0,1.16937407]
[1753723222645,0.18873964,117730.0,117720.0,1.60582191]
[1753723222846,0.18873964,117730.0,117720.0,2.04230975]
[1753723223242,0.2123427,117740.0,117720.0,1.60682191]
[1753723223451,0.20443746,117740.0,117730.0,1.49432784]
[1753723223649,0.24690516,117740.0,117730.0,1.49432784]
[1753723223848,0.16196976,117740.0,117730.0,1.49432784]
[1753723224237,0.01594036,117740.0,117730.0,1.49432784]
[1753723224444,0.18680456,117740.0,117730.0,1.49432784]
[1753723224839,0.18680456,117740.0,117730.0,1.56933382]
[1753723225449,0.18680456,117740.0,117730.0,1.58991019]
[1753723225644,0.23578456,117740.0,117730.0,0.36937637]
[1753723225848,0.54235456,117740.0,117730.0,1.07821637]
[1753723226049,0.54135456,117740.0,117730.0,1.07821637]
[1753723226250,0.54235456,117740.0,117730.0,1.08021637]
[1753723226443,0.26865456,117740.0,117730.0,1.08021637]
[1753723226649,0.23578456,117740.0,117730.0,1.08021637]
[1753723226844,0.23578456,117740.0,117730.0,1.59171019]
[1753723227054,0.1708642,117740.0,117730.0,1.59171019]
[1753723227349,0.21102688,117750.0,117730.0,1.76158879]
[1753723227552,0.12739151,117750.0,117740.0,1.03015802]
[1753723227852,0.21100936,117760.0,117750.0,0.3488]
[1753723228046,0.21100936,117760.0,117750.0,1.56869382]
[1753723228354,0.295532,117760.0,117750.0,1.56869382]
[1753723228946,0.295532,117760.0,117750.0,1.0572]
[1753723230253,0.296532,117760.0,117750.0,2.23276]
[1753723230553,0.298532,117760.0,117750.0,2.23276]
[1753723231752,0.296532,117760.0,117750.0,2.23376]
[1753723231950,0.296532,117760.0,117750.0,1.52536]
[1753723232148,1.16357582,117760.0,117750.0,1.8848]
[1753723232352,1.16357582,117760.0,117750.0,1.88468]
[1753723232547,1.16257582,117760.0,117750.0,1.88368]
[1753723232752,1.16357582,117760.0,117750.0,1.88668]
[1753723233450,1.16357582,117760.0,117750.0,1.8375869]
[1753723234052,1.16357582,117760.0,117750.0,1.8365869]
[1753723234252,1.16457582,117760.0,117750.0,1.8365869]
[1753723234749,1.16457582,117760.0,117750.0,1.1277869]
[1753723234950,0.652082,117760.0,117750.0,2.0407969]
[1753723235146,0.654082,117760.0,117750.0,2.0407969]
[1753723235352,0.67026088,117760.0,117750.0,2.0407969]
[1753723236259,0.67026088,117760.0,117750.0,2.0387969]
[1753723236557,1.1817547,117760.0,117750.0,2.0387969]
[1753723237057,1.1797547,117760.0,117750.0,2.0387969]
[1753723237260,1.1797547,117760.0,117750.0,2.0397969]
[1753723238052,1.1797547,117760.0,117750.0,2.03643961]
[1753723238252,1.1797547,117760.0,117750.0,2.03543961]
[1753723238453,1.1807547,117760.0,117750.0,2.03543961]
[1753723238855,1.1807554,117760.0,117750.0,2.03543961]
[1753723239957,0.66926158,117760.0,117750.0,2.03543961]
[1753723240163,0.31371158,117760.0,117750.0,2.03543961]
[1753723240561,0.47835158,117760.0,117750.0,2.03543961]
[1753723240760,0.31371158,117760.0,117750.0,2.03543961]
[1753723240964,0.31371158,117760.0,117750.0,2.54693343]
[1753723241264,0.31371158,117760.0,117750.0,2.03543961]
[1753723241863,0.31371158,117760.0,117750.0,2.54693343]
[1753723242459,0.31371158,117760.0,117750.0,2.03543961]
[1753723242663,0.31371158,117760.0,117750.0,2.54693343]
[1753723243056,0.31371158,117760.0,117750.0,2.56713315]
[1753723244463,0.31371158,117760.0,117750.0,2.05563933]
[1753723244963,0.18672714,117760.0,117750.0,2.05563933]
[1753723245267,0.18672714,117760.0,117750.0,2.56713315]
[1753723245468,0.18672714,117760.0,117750.0,2.54693343]
[1753723246482,0.18672714,117760.0,117750.0,2.56713374]
[1753723246680,0.0424578,117770.0,117750.0,2.56713374]
[1753723246879,0.245699,117770.0,117760.0,0.86029382]
[1753723247274,0.31305572,117770.0,117760.0,0.86029382]
[1753723247882,0.31305572,117770.0,117760.0,0.88056393]
[1753723248275,0.31505572,117770.0,117760.0,0.88156393]
[1753723249782,0.31505572,117770.0,117760.0,0.88356393]
[1753723249783,0.18795878,117770.0,117760.0,0.88356393]
[1753723249980,0.18895878,117770.0,117760.0,0.88356393]
[1753723250885,0.18695878,117770.0,117760.0,0.88356393]
[1753723251182,0.18695878,117770.0,117760.0,0.88456393]
[1753723252084,0.18695878,117770.0,117760.0,1.14746393]
[1753723254078,0.08813937,117780.0,117770.0,0.34113]
[1753723254280,0.08813937,117780.0,117770.0,1.55978382]
[1753723254580,0.21480008,117780.0,117770.0,1.06856566]
[1753723255688,0.21480008,117780.0,117770.0,1.04829]
[1753723256186,0.21580008,117780.0,117770.0,1.05029]
[1753723256387,0.21580008,117780.0,117770.0,0.34313]
[1753723256686,0.21580008,117780.0,117770.0,1.04953]
[1753723256987,0.21680008,117780.0,117770.0,1.48573511]
[1753723257387,0.12866071,117780.0,117770.0,1.65555591]
[1753723257583,0.2971555,117790.0,117770.0,1.65455591]
[1753723257780,0.001,117780.0,117770.0,1.24269219]
[1753723257981,0.001,117780.0,117770.0,1.6788973]
[1753723258489,0.1708066,117780.0,117770.0,1.5100765]
[1753723258688,0.1708066,117780.0,117770.0,1.6798975]
[1753723258889,0.1708066,117780.0,117770.0,1.5100765]
[1753723259090,0.1698066,117780.0,117770.0,1.5060765]
[1753723259383,0.0858993,117790.0,117780.0,0.20478]
[1753723259593,0.001,117790.0,117780.0,0.94714161]
[1753723259894,0.0848913,117800.0,117790.0,0.34113]
[1753723259895,0.2546795,117800.0,117790.0,0.34113]
[1753723260082,0.2546795,117800.0,117790.0,1.48325511]
[1753723260284,0.2546795,117800.0,117790.0,1.69549501]
[1753723260285,0.12725916,117800.0,117790.0,1.69549501]
[1753723260590,0.254626,117820.0,117810.0,0.34113]
[1753723260787,0.254626,117820.0,117810.0,1.55774217]
[1753723261085,0.38198296,117820.0,117810.0,1.55774217]
[1753723261287,0.12735696,117820.0,117810.0,1.59386878]
[1753723261589,0.1697424,117830.0,117820.0,0.34113]
[1753723261590,0.2121767,117830.0,117820.0,0.34113]
[1753723261986,0.59717383,117830.0,117820.0,0.34113]
[1753723262181,0.68955383,117830.0,117820.0,0.34113]
[1753723262983,0.69055383,117830.0,117820.0,0.34513]
[1753723263388,0.12755713,117830.0,117820.0,1.02569087]
[1753723264689,0.29729143,117830.0,117820.0,1.02569087]
[1753723264888,0.12755713,117830.0,117820.0,1.02669087]
[1753723265084,0.001,117830.0,117820.0,1.02669087]
[1753723266592,0.001,117830.0,117820.0,1.09595367]
[1753723266990,0.2545737,117850.0,117830.0,0.1697331]
[1753723267189,0.1697161,117850.0,117840.0,1.35260217]
[1753723267398,0.3292961,117850.0,117840.0,1.52232207]
[1753723267788,0.3292961,117850.0,117840.0,1.45784217]
[1753723267996,0.3292961,117850.0,117840.0,1.55738217]
[1753723268197,0.3302961,117850.0,117840.0,1.55738217]
[1753723268494,0.3801461,117850.0,117840.0,1.55738217]
[1753723268795,1.11033323,117850.0,117840.0,0.70544]
[1753723269001,1.6211454,117850.0,117840.0,0.70544]
[1753723269189,1.57905523,117850.0,117840.0,0.70544]
[1753723269388,0.5197041,117830.0,117820.0,0.0732628]
[1753723269601,1.03051627,117830.0,117820.0,0.7472511]
[1753723269801,0.2234385,117820.0,117810.0,0.74112661]
[1753723270000,0.2946385,117820.0,117810.0,0.75073]
[1753723270300,0.42127497,117820.0,117810.0,1.0557]
[1753723271093,0.42127497,117820.0,117810.0,1.12648988]
[1753723271899,0.42327497,117820.0,117810.0,1.16182564]
[1753723273106,0.93408714,117820.0,117810.0,1.16182564]
[1753723273310,0.93408714,117820.0,117810.0,1.09274564]
[1753723273698,0.93408714,117820.0,117810.0,1.04739564]
[1753723274900,0.93408714,117820.0,117810.0,0.85685564]
[1753723275801,0.93408714,117820.0,117810.0,0.95639564]
[1753723276406,0.93408714,117820.0,117810.0,0.85685564]
[1753723276609,0.93408714,117820.0,117810.0,1.09274564]
[1753723276908,0.93408714,117820.0,117810.0,1.16182564]
[1753723277604,0.42327497,117820.0,117810.0,1.16182564]
[1753723277805,0.93408714,117820.0,117810.0,1.16182564]
[1753723278399,0.93408714,117820.0,117810.0,1.09274564]
[1753723279106,0.94980628,117820.0,117810.0,1.16182564]
[1753723279301,0.43899411,117820.0,117810.0,1.16182564]
[1753723279502,0.94980628,117820.0,117810.0,1.16182564]
[1753723279906,0.94980628,117820.0,117810.0,0.85685564]
[1753723280606,0.94980628,117820.0,117810.0,0.95639564]